fUSD/lending_fUSD_20260324
["ID","MTS","AMOUNT","RATE_DAILY","PERIOD"]
[408883235,1774387635415,500.0,0.00013221,2]
[408883236,1774387636005,500.0,0.00013221,2]
[408883237,1774387636601,500.0,0.00013221,2]
[408883238,1774387637216,500.0,0.00013221,2]
[408883239,1774387637777,500.0,0.00013221,2]
[408883240,1774387637849,500.0,0.00013221,2]
[408883241,1774387638416,500.0,0.00013221,2]
[408883242,1774387639049,500.0,0.00013221,2]
[408883243,1774387641275,151.0,0.00013221,2]
[408883244,1774387641883,151.0,0.00013221,2]
[408883245,1774387642509,151.0,0.00013221,2]
[408883246,1774387643108,151.0,0.00013221,2]
[408883247,1774387643175,-0.01,0.00013221,2]
[408883248,1774387643341,-0.02,0.00013221,2]
[408883249,1774387643537,-0.04,0.00013221,2]
[408883250,1774387643631,-4778.22837695,0.00013221,2]
[408883251,1774387646149,-151.0,0.00013221,2]
[408883252,1774387646179,-151.0,0.00013221,2]
[408883253,1774387646208,-151.0,0.00013221,2]
[408883254,1774387646238,-151.0,0.00013221,2]
[408883255,1774387646266,-151.0,0.00013221,2]
[408883256,1774387646294,-151.0,0.00013221,2]
[408883257,1774387646320,-221.70162305,0.00013221,2]
[408883258,1774387646372,151.0,0.00013221,2]
[408883259,1774387646749,151.0,0.00013221,2]
[408883260,1774387646787,151.0,0.00013221,2]
[408883261,1774387647360,151.0,0.00013221,2]
[408883262,1774387647405,151.0,0.00013221,2]
[408883263,1774387648037,151.0,0.00013221,2]
[408883264,1774387648105,151.0,0.00013221,2]
[408883265,1774387648142,151.0,0.00013221,2]
[408883266,1774387648623,151.0,0.00013221,2]
[408883267,1774387648708,151.0,0.00013221,2]
[408883268,1774387649287,172.63637732,0.00013221,2]
[408883269,1774387649313,151.0,0.00013221,2]
[408883270,1774387649869,151.0,0.00013221,2]
[408883271,1774387650524,151.0,0.00013221,2]
[408883272,1774387651032,151.0,0.00013221,2]
[408883273,1774387651625,151.0,0.00013221,2]
[408883274,1774387654021,306.97037658,0.00013221,2]
[408883275,1774387654044,193.02962342,0.00013221,2]
[408883276,1774387654816,500.0,0.00013221,2]
[408883277,1774387655329,500.0,0.00013221,2]
[408883278,1774387655895,500.0,0.00013221,2]
[408883279,1774387656602,500.0,0.00013221,2]
[408883280,1774387657282,500.0,0.00013221,2]
[408883281,1774387657879,500.0,0.00013221,2]
[408883282,1774387658985,500.0,0.00013221,2]
[408883283,1774387659669,500.0,0.00013221,2]
[408883284,1774387660278,500.0,0.00013221,2]
[408883285,1774387661020,584.87479624,0.00013221,2]
[408883286,1774387719538,420.79,0.000128,2]
[408883287,1774387731467,269.95045179,0.000107,2]
[408883288,1774387737880,2224.39475197,9.5e-05,3]
[408883289,1774387737903,5000.01,9.5e-05,3]
[408883290,1774387737927,5000.01,9.5e-05,3]
[408883291,1774387737950,5000.01,9.5e-05,3]
[408883292,1774387737979,100496.0399793,9.5e-05,3]
[408883293,1774387747139,-166.66,0.00013334,2]
[408883294,1774387747163,-158.4,0.00013355,2]
[408883295,1774387747186,-1000.0,0.000135,2]
[408883296,1774387747211,-166.66,0.00013598,2]
[408883297,1774387747231,-327.037402,0.00013599,2]
[408883298,1774387751109,-172.962598,0.00013599,2]
[408883299,1774387751130,-162.84714986,0.00013602,2]
[408883300,1774387774104,-217.75576504,0.00013518,2]
[408883301,1774387774128,-137.15285014,0.00013602,2]
[408883302,1774387774150,-19805.95238921,0.00013603,2]
[408883303,1774387774173,-289.22562759,0.00013618,2]
[408883304,1774387774193,-382.19,0.00013622,2]
[408883305,1774387774214,-200.0,0.00013635,2]
[408883306,1774387774240,-150.0,0.00013692,2]
[408883307,1774387774262,-164.47,0.00013699,2]
[408883308,1774387774283,-822.38,0.00013699,2]
[408883309,1774387774305,-150.0,0.0001372,2]
[408883310,1774387774326,-3608.2442,0.00013721,2]
[408883311,1774387774346,-875.6608,0.00013721,2]
[408883312,1774387774367,-563.0539,0.00013721,2]
[408883313,1774387774387,-192.99553635,0.00013721,2]
[408883314,1774387774411,-10538.19999138,0.00013721,2]
[408883315,1774387774431,-1065.4487834,0.00013722,2]
[408883316,1774387827085,151.0,0.00012723,2]
[408883317,1774387827181,178.55194402,0.00012823,2]
[408883331,1774387832264,-3240.0,0.00013425,2]
[408883332,1774387832275,-1200.0,0.00013661,2]
[408883333,1774387832286,-150.0,0.00013661,2]
[408883334,1774387832297,-300.0,0.00013661,2]
[408883335,1774387832308,-104710.0,0.00013662,2]
[408883336,1774387832333,-2086.21568691,0.00013662,2]
[408883337,1774387832347,-940.11642928,0.00013662,2]
[408883338,1774387832363,-707602.34438381,0.00013662,2]
[408883339,1774387832372,-3098.1,0.000137,2]
[408883340,1774387832381,-3098.1,0.000137,2]
[408883341,1774387832390,-3098.1,0.000137,2]
[408883342,1774387832400,-3098.1,0.000137,2]
[408883343,1774387832410,-3098.1,0.000137,2]
[408883344,1774387832419,-1434.5512166,0.00013722,2]
[408883345,1774387832429,-30292.7456874,0.00013728,2]
[408883346,1774387832440,-3339.45881889,0.00013728,2]
[408883347,1774387832450,-200.0,0.00013769,2]
[408883348,1774387832459,-150.0,0.000138,2]
[408883349,1774387832469,-184.01345783,0.00013812,2]
[408883350,1774387832478,-1206.24,0.00013813,2]
[408883351,1774387832488,-500.0,0.00013821,2]
[408883352,1774387832497,-500.0,0.00013821,2]
[408883353,1774387832506,-500.0,0.00013821,2]
[408883354,1774387832515,-500.0,0.00013821,2]
[408883355,1774387832525,-500.0,0.00013821,2]
[408883356,1774387832534,-336.61258847,0.00013821,2]
[408883357,1774387832543,-337.92671637,0.00013821,2]
[408883358,1774387832552,-265.68221303,0.00013821,2]
[408883359,1774387832561,-879.40246136,0.00013821,2]
[408883360,1774387832571,-500.0,0.00013821,2]
[408883361,1774387832580,-265.50027559,0.00013821,2]
[408883362,1774387832589,-879.40246136,0.00013821,2]
[408883363,1774387832599,-500.0,0.00013821,2]
[408883364,1774387832612,-398.6694,0.00013821,2]
[408883365,1774387832621,-168.06892069,0.00013821,2]
[408883366,1774387832631,-500.0,0.00013821,2]
[408883367,1774387832642,-500.0,0.00013821,2]
[408883368,1774387832652,-879.40246136,0.00013821,2]
[408883369,1774387832662,-500.0,0.00013821,2]
[408883370,1774387832674,-879.40246136,0.00013821,2]
[408883371,1774387832684,-879.40246136,0.00013821,2]
[408883372,1774387832695,-879.40246136,0.00013821,2]
[408883373,1774387832706,-879.40246136,0.00013821,2]
[408883374,1774387832717,-879.40246136,0.00013821,2]
[408883375,1774387832729,-879.40246136,0.00013821,2]
[408883376,1774387832739,-879.40246136,0.00013821,2]
[408883377,1774387832748,-879.40246136,0.00013821,2]
[408883378,1774387832759,-879.40246136,0.00013821,2]
[408883379,1774387832768,-879.40246136,0.00013821,2]
[408883380,1774387832778,-879.40246136,0.00013821,2]
[408883381,1774387832790,-879.40246136,0.00013821,2]
[408883382,1774387832800,-879.40246136,0.00013821,2]
[408883383,1774387832811,-879.40246136,0.00013821,2]
[408883384,1774387832820,-879.40246136,0.00013821,2]
[408883385,1774387832831,-879.40246136,0.00013821,2]
[408883386,1774387832843,-879.40246136,0.00013821,2]
[408883387,1774387832854,-879.40246136,0.00013821,2]
[408883388,1774387832863,-879.40246136,0.00013821,2]
[408883389,1774387832872,-879.40246136,0.00013821,2]
[408883390,1774387832883,-879.40246136,0.00013821,2]
[408883391,1774387832893,-879.40246136,0.00013821,2]
[408883392,1774387832904,-879.40246136,0.00013821,2]
[408883393,1774387832915,-879.40246136,0.00013821,2]
[408883394,1774387832924,-879.40246136,0.00013821,2]
[408883395,1774387832934,-879.40246136,0.00013821,2]
[408883396,1774387832943,-879.40246136,0.00013821,2]
[408883397,1774387832952,-879.40246136,0.00013821,2]
[408883398,1774387832961,-879.40246136,0.00013821,2]
[408883399,1774387832971,-879.40246136,0.00013821,2]
[408883400,1774387832982,-879.40246136,0.00013821,2]
[408883401,1774387832993,-879.40246136,0.00013821,2]
[408883402,1774387833003,-879.40246136,0.00013821,2]
[408883403,1774387833012,-879.40246136,0.00013821,2]
[408883404,1774387833023,-879.40246136,0.00013821,2]
[408883405,1774387833034,-879.40246136,0.00013821,2]
[408883406,1774387833044,-879.40246136,0.00013821,2]
[408883407,1774387833054,-879.40246136,0.00013821,2]
[408883408,1774387833066,-879.40246136,0.00013821,2]
[408883409,1774387833076,-879.40246136,0.00013821,2]
[408883410,1774387833087,-879.40246136,0.00013821,2]
[408883411,1774387833099,-879.40246136,0.00013821,2]
[408883412,1774387833110,-879.40246136,0.00013821,2]
[408883413,1774387833121,-879.40246136,0.00013821,2]
[408883414,1774387833132,-879.40246136,0.00013821,2]
[408883415,1774387833143,-879.40246136,0.00013821,2]
[408883416,1774387833153,-879.40246136,0.00013821,2]
[408883417,1774387833163,-879.40246136,0.00013821,2]
[408883418,1774387833175,-879.40246136,0.00013821,2]
[408883419,1774387833186,-879.40246136,0.00013821,2]
[408883420,1774387833197,-879.40246136,0.00013821,2]
[408883421,1774387833210,-879.40246136,0.00013821,2]
[408883422,1774387833220,-879.40246136,0.00013821,2]
[408883423,1774387833232,-879.40246136,0.00013821,2]
[408883424,1774387833243,-879.40246136,0.00013821,2]
[408883425,1774387833254,-870.60843674,0.00013821,2]
[408883426,1774387833264,-870.60843674,0.00013821,2]
[408883427,1774387833277,-870.60843674,0.00013821,2]
[408883428,1774387833287,-870.60843674,0.00013821,2]
[408883429,1774387833300,-870.60843674,0.00013821,2]
[408883430,1774387833311,-870.60843674,0.00013821,2]
[408883431,1774387833324,-870.60843674,0.00013821,2]
[408883432,1774387833333,-870.60843674,0.00013821,2]
[408883433,1774387833342,-870.60843674,0.00013821,2]
[408883434,1774387833352,-870.60843674,0.00013821,2]
[408883435,1774387833363,-870.60843674,0.00013821,2]
[408883436,1774387833372,-870.60843674,0.00013821,2]
[408883437,1774387833382,-870.60843674,0.00013821,2]
[408883438,1774387833392,-870.60843674,0.00013821,2]
[408883439,1774387833403,-870.60843674,0.00013821,2]
[408883440,1774387833412,-870.60843674,0.00013821,2]
[408883441,1774387833422,-870.60843674,0.00013821,2]
[408883442,1774387833432,-870.60843674,0.00013821,2]
[408883443,1774387833444,-870.60843674,0.00013821,2]
[408883444,1774387833453,-870.60843674,0.00013821,2]
[408883445,1774387833463,-870.60843674,0.00013821,2]
[408883446,1774387833473,-870.60843674,0.00013821,2]
[408883447,1774387833483,-870.60843674,0.00013821,2]
[408883448,1774387833493,-870.60843674,0.00013821,2]
[408883449,1774387833502,-870.60843674,0.00013821,2]
[408883450,1774387833511,-870.60843674,0.00013821,2]
[408883451,1774387833521,-870.60843674,0.00013821,2]
[408883452,1774387833530,-870.60843674,0.00013821,2]
[408883453,1774387833539,-870.60843674,0.00013821,2]
[408883454,1774387833550,-870.60843673,0.00013821,2]
[408883455,1774387833559,-338.47316987,0.00013821,2]
[408883456,1774387833570,-616.72336867,0.00013821,2]
[408883457,1774387833581,-500.0,0.00013821,2]
[408883458,1774387833592,-500.0,0.00013821,2]
[408883459,1774387833602,-500.0,0.00013821,2]
[408883460,1774387833614,-500.0,0.00013821,2]
[408883461,1774387833624,-500.0,0.00013821,2]
[408883462,1774387833634,-500.0,0.00013821,2]
[408883463,1774387833645,-500.0,0.00013821,2]
[408883464,1774387833655,-21311.58765609,0.00013822,2]
[408883465,1774387833668,-178741.58543354,0.00013822,2]
[408883466,1774387833681,-47915.04916384,0.00013822,2]
[408883467,1774387833694,-17000.0,0.00013822,2]
[408883469,1774387837718,-22353.76076004,0.00013822,2]
[408883470,1774387837774,-1513.37736013,0.00013822,2]
[408883471,1774387837890,-9416.03792636,0.00013822,2]
[408883472,1774387837899,-677.0,0.00013828,2]
[408883473,1774387837909,-345.0,0.00013833,2]
[408883474,1774387837918,-166.66,0.00013862,2]
[408883475,1774387837927,-500.0,0.00013873,2]
[408883476,1774387837936,-500.0,0.00013873,2]
[408883477,1774387837946,-500.0,0.00013873,2]
[408883478,1774387837955,-499.91265482,0.00013873,2]
[408883480,1774387837964,-548.75458945,0.00013873,2]
[408883481,1774387837973,-160.23635547,0.00013873,2]
[408883482,1774387837982,-161.41271837,0.00013873,2]
[408883483,1774387837991,-500.0,0.00013873,2]
[408883484,1774387838000,-500.0,0.00013873,2]
[408883485,1774387838009,-501.30507593,0.00013873,2]
[408883486,1774387838018,-500.0,0.00013873,2]
[408883487,1774387838027,-502.75676599,0.00013873,2]
[408883488,1774387838037,-500.0,0.00013873,2]
[408883489,1774387838046,-160.21582819,0.00013873,2]
[408883490,1774387838056,-500.0,0.00013873,2]
[408883491,1774387838066,-500.0,0.00013873,2]
[408883492,1774387838075,-160.23822493,0.00013873,2]
[408883493,1774387838084,-500.13992737,0.00013873,2]
[408883495,1774387838094,-500.0,0.00013873,2]
[408883497,1774387838104,-500.0,0.00013873,2]
[408883499,1774387838112,-500.0,0.00013873,2]
[408883501,1774387838122,-500.0,0.00013873,2]
[408883503,1774387838130,-449.54382398,0.00013873,2]
[408883504,1774387838139,-500.0,0.00013873,2]
[408883505,1774387838149,-500.0,0.00013873,2]
[408883506,1774387838158,-504.00492722,0.00013873,2]
[408883507,1774387838167,-1200.0,0.00013875,2]
[408883508,1774387838178,-397.0,0.00013882,2]
[408883509,1774387838189,-700.0,0.000139,5]
[408883510,1774387838199,-161.0,0.00013909,2]
[408883511,1774387838209,-488.0,0.00013937,2]
[408883512,1774387838219,-254.0,0.00013948,2]
[408883513,1774387838233,-33632.2045062,0.00013969,2]
[408883514,1774387838243,-500.0,0.00013989,2]
[408883515,1774387838251,-132646.18715259,0.0001399,2]
[408883516,1774387838260,-504.0,0.00014,2]
[408883517,1774387838271,-1417.24642753,0.00014059,2]
[408883518,1774387838282,-420.74,0.00014067,2]
[408883519,1774387838292,-1206.24,0.00014087,2]
[408883520,1774387838304,-500.0,0.00014095,2]
[408883521,1774387838315,-1465.0,0.0001419,2]
[408883522,1774387838324,-1916.89649568,0.00014193,2]
[408883523,1774387838334,-342.39,0.00014194,2]
[408883524,1774387838345,-33632.2045062,0.00014211,2]
[408883525,1774387838356,-547.0,0.00014219,2]
[408883526,1774387838365,-214.0,0.0001423,2]
[408883527,1774387838374,-500.0,0.00014274,2]
[408883528,1774387838386,-500.0,0.00014274,2]
[408883529,1774387838397,-200.0,0.00014317,2]
[408883530,1774387838406,-151.0,0.00014321,2]
[408883531,1774387838417,-151.0,0.00014321,2]
[408883532,1774387838426,-160.0,0.00014321,2]
[408883533,1774387838436,-500.0,0.00014329,2]
[408883534,1774387838446,-382.19,0.00014339,2]
[408883535,1774387838455,-1206.24,0.00014361,2]
[408883536,1774387838464,-500.0,0.00014368,2]
[408883537,1774387838474,-460.0,0.00014389,2]
[408883538,1774387838484,-1086.68534532,0.000144,2]
[408883539,1774387838494,-1253.39195906,0.000144,2]
[408883540,1774387838503,-515.92877712,0.000144,2]
[408883541,1774387838512,-1204.95342245,0.000144,2]
[408883542,1774387838522,-504.19292087,0.00014421,2]
[408883543,1774387838533,-500.62395653,0.00014421,2]
[408883544,1774387838543,-1000.0,0.00014421,2]
[408883545,1774387838552,-1000.0,0.00014421,2]
[408883546,1774387838561,-1000.0,0.00014421,2]
[408883547,1774387838571,-501.80799623,0.00014421,2]
[408883548,1774387838580,-504.67871963,0.00014421,2]
[408883549,1774387838590,-1000.0,0.00014421,2]
[408883550,1774387838599,-1000.0,0.00014421,2]
[408883551,1774387838609,-1000.0,0.00014421,2]
[408883552,1774387838618,-1000.0,0.00014421,2]
[408883553,1774387838628,-1000.0,0.00014421,2]
[408883554,1774387838638,-1000.0,0.00014421,2]
[408883555,1774387838648,-500.0,0.00014421,2]
[408883556,1774387838658,-1000.0,0.00014421,2]
[408883557,1774387838669,-500.0,0.00014426,2]
[408883558,1774387838678,-500.0,0.00014426,2]
[408883559,1774387838687,-979.26716078,0.00014433,2]
[408883560,1774387838696,-542.4420908,0.00014433,2]
[408883561,1774387838707,-2738.71341748,0.00014433,2]
[408883562,1774387838717,-33632.2045062,0.00014452,2]
[408883563,1774387838727,-9401.0,0.00014493,2]
[408883564,1774387838736,-1346.77,0.00014527,2]
[408883565,1774387838745,-151.0,0.00014529,2]
[408883566,1774387838755,-151.0,0.00014529,2]
[408883567,1774387838764,-151.0,0.00014529,2]
[408883568,1774387838773,-151.0,0.00014529,2]
[408883569,1774387838783,-500.0,0.00014531,2]
[408883570,1774387838792,-500.0,0.00014531,2]
[408883571,1774387838801,-500.0,0.00014531,2]
[408883572,1774387838811,-275.04924255,0.00014531,2]
[408883573,1774387838820,-500.0,0.00014531,2]
[408883574,1774387838829,-500.0,0.00014531,2]
[408883575,1774387838838,-500.0,0.00014531,2]
[408883576,1774387838847,-500.0,0.00014531,2]
[408883577,1774387838857,-207.8534478,0.00014531,2]
[408883578,1774387838866,-500.0,0.00014531,2]
[408883579,1774387838876,-500.0,0.00014531,2]
[408883580,1774387838890,-500.0,0.00014531,2]
[408883581,1774387838899,-500.0,0.00014531,2]
[408883582,1774387838908,-500.0,0.00014531,2]
[408883583,1774387838917,-151.31357891,0.00014531,2]
[408883584,1774387838926,-500.0,0.00014531,2]
[408883585,1774387838936,-500.0,0.00014531,2]
[408883586,1774387838945,-500.0,0.00014531,2]
[408883587,1774387838954,-500.0,0.00014531,2]
[408883588,1774387838963,-500.0,0.00014531,2]
[408883589,1774387838972,-500.0,0.00014531,2]
[408883590,1774387838981,-500.0,0.00014531,2]
[408883591,1774387838991,-500.0,0.00014531,2]
[408883592,1774387839000,-500.0,0.00014531,2]
[408883593,1774387839009,-500.0,0.00014531,2]
[408883594,1774387839019,-500.0,0.00014531,2]
[408883595,1774387839030,-500.0,0.00014531,2]
[408883596,1774387839040,-615.8329075,0.00014531,2]
[408883597,1774387839050,-300.0,0.00014542,2]
[408883598,1774387839062,-250.0,0.00014543,2]
[408883599,1774387839071,-500.0,0.00014573,2]
[408883600,1774387839081,-500.0,0.00014573,2]
[408883601,1774387839093,-500.0,0.00014573,2]
[408883602,1774387839103,-500.0,0.00014573,2]
[408883603,1774387839114,-500.0,0.00014573,2]
[408883604,1774387839124,-500.65903266,0.00014573,2]
[408883605,1774387839134,-500.43058459,0.00014573,2]
[408883606,1774387839143,-500.0,0.00014573,2]
[408883607,1774387839152,-500.80504455,0.00014573,2]
[408883608,1774387839162,-500.58525136,0.00014573,2]
[408883609,1774387839171,-500.0,0.00014573,2]
[408883610,1774387839180,-500.0,0.00014573,2]
[408883611,1774387839189,-500.0,0.00014573,2]
[408883612,1774387839199,-366.41832896,0.00014573,2]
[408883613,1774387839207,-500.0,0.00014573,2]
[408883614,1774387839217,-500.62245352,0.00014573,2]
[408883615,1774387839226,-500.0,0.00014573,2]
[408883616,1774387839239,-500.0,0.00014573,2]
[408883617,1774387839248,-347.94216551,0.00014573,2]
[408883618,1774387839258,-500.0,0.00014573,2]
[408883619,1774387839267,-500.0,0.00014573,2]
[408883620,1774387839278,-500.37949431,0.00014573,2]
[408883621,1774387839287,-500.0,0.00014573,2]
[408883622,1774387839297,-500.0,0.00014573,2]
[408883623,1774387839307,-1465.5,0.000146,2]
[408883624,1774387839317,-2875.03,0.000146,2]
[408883625,1774387839326,-4337.87,0.000146,2]
[408883626,1774387839335,-3628.21,0.000146,2]
[408883627,1774387839345,-549.24953031,0.000146,2]
[408883628,1774387839354,-1206.24,0.00014635,2]
[408883629,1774387839363,-500.0,0.00014642,2]
[408883630,1774387839373,-160.0,0.00014651,7]
[408883631,1774387839382,-230.400852,0.00014651,7]
[408883632,1774387839392,-300.801705,0.00014651,7]
[408883633,1774387839401,-32175.8905,0.0001466,2]
[408883634,1774387839410,-2916.1278,0.0001466,2]
[408883635,1774387839420,-1000.0,0.0001466,2]
[408883636,1774387839429,-4849.71989296,0.00014668,2]
[408883637,1774387839438,-979.26716074,0.00014678,2]
[408883638,1774387839448,-500.0,0.00014685,2]
[408883639,1774387839457,-33632.2045062,0.00014693,2]
[408883640,1774387839466,-233.907364,0.000147,7]
[408883641,1774387839476,-259.846545,0.00014719,7]
[408883642,1774387839485,-2247.52115608,0.00014767,2]
[408883643,1774387839494,-200.0,0.00014767,2]
[408883644,1774387839503,-237.65448027,0.00014767,2]
[408883645,1774387839513,-240.55348413,0.00014767,2]
[408883646,1774387839522,-255.0,0.00014781,2]
[408883647,1774387839532,-1500.0,0.000148,5]
[408883648,1774387839541,-549.24953029,0.0001486,2]
[408883649,1774387839551,-200.0,0.00014865,2]
[408883650,1774387839559,-226.178143,0.00014884,7]
[408883651,1774387839569,-250.222599,0.00014891,7]
[408883652,1774387839578,-2300.0,0.000149,5]
[408883653,1774387839588,-1206.24,0.00014909,2]
[408883654,1774387839597,-500.0,0.00014913,2]
[408883655,1774387839606,-500.0,0.00014913,2]
[408883656,1774387839616,-500.86404044,0.00014913,2]
[408883657,1774387839625,-500.0,0.00014913,2]
[408883658,1774387839634,-500.0,0.00014913,2]
[408883659,1774387839644,-500.0,0.00014913,2]
[408883660,1774387839653,-500.0,0.00014913,2]
[408883661,1774387839662,-500.0,0.00014913,2]
[408883662,1774387839672,-500.0,0.00014913,2]
[408883663,1774387839682,-500.0,0.00014913,2]
[408883664,1774387839691,-500.0,0.00014916,2]
[408883665,1774387839700,-979.26716074,0.00014922,2]
[408883666,1774387839709,-33632.2045062,0.00014935,2]
[408883667,1774387839719,-501.32590784,0.00014968,2]
[408883668,1774387839728,-1500.0,0.00014968,2]
[408883669,1774387839737,-510.66843448,0.00014968,2]
[408883670,1774387839746,-1500.0,0.00014968,2]
[408883671,1774387839755,-1500.0,0.00014968,2]
[408883672,1774387839764,-1500.0,0.00014968,2]
[408883673,1774387839773,-1500.0,0.00014968,2]
[408883674,1774387839782,-1500.0,0.00014968,2]
[408883675,1774387839792,-1500.0,0.00014968,2]
[408883676,1774387839800,-697.81018147,0.00014968,2]
[408883677,1774387839810,-420.0,0.00014971,2]
[408883678,1774387839818,-197.185,0.00015,2]
[408883679,1774387839827,-2064.14574728,0.00015,2]
[408883680,1774387839836,-8035.78795788,0.00015,2]
[408883681,1774387839845,-1680.0,0.00015027,2]
[408883682,1774387839854,-154.21572369,0.00015047,2]
[408883683,1774387839863,-382.19,0.00015056,2]
[408883684,1774387839872,-549.24953029,0.0001512,2]
[408883686,1774387839881,-591.58519453,0.00015121,2]
[408883687,1774387839889,-347.47666717,0.00015121,2]
[408883688,1774387839898,-1000.0,0.00015121,2]
[408883689,1774387839907,-1000.0,0.00015121,2]
[408883690,1774387839916,-1000.0,0.00015121,2]
[408883691,1774387839925,-1000.0,0.00015121,2]
[408883692,1774387839935,-1000.0,0.00015121,2]
[408883693,1774387839944,-1000.0,0.00015121,2]
[408883694,1774387839953,-1000.0,0.00015121,2]
[408883695,1774387839962,-1000.0,0.00015121,2]
[408883696,1774387839971,-1000.0,0.00015121,2]
[408883697,1774387839980,-500.21901505,0.00015121,2]
[408883698,1774387839989,-1000.0,0.00015121,2]
[408883699,1774387839998,-500.52131154,0.00015121,2]
[408883700,1774387840007,-1000.0,0.00015121,2]
[408883701,1774387840016,-1000.0,0.00015121,2]
[408883702,1774387840026,-150.0,0.00015152,2]
[408883703,1774387840035,-979.26716074,0.00015167,2]
[408883704,1774387840044,-542.44209079,0.00015167,2]
[408883705,1774387840054,-33632.2045062,0.00015176,2]
[408883706,1774387840064,-1206.24,0.00015183,2]
[408883707,1774387840073,-270.3424235,0.0001519,2]
[408883708,1774387840083,-3162.80581936,0.00015195,2]
[408883709,1774387840093,-2679.32196654,0.00015195,2]
[408883710,1774387840106,-2222.8763441,0.00015195,2]
[408883711,1774387840115,-1046.8329771,0.00015195,2]
[408883712,1774387840124,-578.20924308,0.00015195,2]
[408883713,1774387840134,-721.12765535,0.00015195,2]
[408883714,1774387840144,-500.0,0.00015195,2]
[408883715,1774387840153,-500.0,0.00015195,2]
[408883716,1774387840162,-151.0,0.00015195,2]
[408883717,1774387840171,-500.0,0.00015195,2]
[408883718,1774387840181,-500.0,0.00015195,2]
[408883719,1774387840191,-500.0,0.00015195,2]
[408883720,1774387840200,-500.0,0.00015195,2]
[408883721,1774387840212,-500.0,0.00015195,2]
[408883722,1774387840223,-500.0,0.00015195,2]
[408883723,1774387840237,-500.0,0.00015195,2]
[408883724,1774387840247,-9552.16786547,0.00015195,2]
[408883725,1774387840258,-500.0,0.00015195,2]
[408883726,1774387840268,-500.0,0.00015195,2]
[408883727,1774387840281,-500.0,0.00015195,2]
[408883728,1774387840291,-500.0,0.00015195,2]
[408883729,1774387840301,-500.0,0.00015195,2]
[408883730,1774387840311,-500.0,0.00015195,2]
[408883731,1774387840321,-500.0,0.00015195,2]
[408883732,1774387840330,-500.0,0.00015195,2]
[408883733,1774387840339,-500.0,0.00015195,2]
[408883734,1774387840349,-500.0,0.00015195,2]
[408883735,1774387840359,-500.0,0.00015195,2]
[408883736,1774387840368,-500.0,0.00015195,2]
[408883737,1774387840378,-500.0,0.00015195,2]
[408883738,1774387840387,-500.0,0.00015195,2]
[408883739,1774387840397,-500.0,0.00015195,2]
[408883740,1774387840407,-500.0,0.00015195,2]
[408883741,1774387840416,-500.0,0.00015195,2]
[408883742,1774387840426,-500.0,0.00015195,2]
[408883743,1774387840436,-500.0,0.00015195,2]
[408883744,1774387840445,-500.0,0.00015195,2]
[408883745,1774387840454,-500.0,0.00015195,2]
[408883746,1774387840464,-500.0,0.00015195,2]
[408883747,1774387840473,-500.0,0.00015195,2]
[408883748,1774387840482,-500.0,0.00015195,2]
[408883749,1774387840491,-500.0,0.00015195,2]
[408883750,1774387840501,-174.61919141,0.00015195,2]
[408883751,1774387840510,-151.0,0.00015195,2]
[408883752,1774387840520,-200.0,0.00015195,2]
[408883753,1774387840529,-250.0,0.00015195,2]
[408883754,1774387840538,-250.0,0.00015195,2]
[408883756,1774387840547,-693.3919763,0.00015195,2]